lending/lending_fUSD_20241005
["ID","MTS","AMOUNT","RATE_DAILY","PERIOD"]
[339864719,1728093047638,-500.0,0.00037534,120]
[339864720,1728093047647,-648.0,0.00037534,120]
[339864721,1728093047656,-500.0,0.00037534,120]
[339864722,1728093047665,-500.0,0.00037534,120]
[339864723,1728093047675,-500.0,0.00037534,120]
[339864724,1728093047684,-500.0,0.00037534,120]
[339864725,1728093047693,-593.67973431,0.00037534,120]
[339864726,1728093047702,-1028.1,0.00037534,120]
[339864727,1728093047712,-500.0,0.00037534,120]
[339864728,1728093047722,-500.0,0.00037534,120]
[339864729,1728093047731,-500.0,0.00037534,120]
[339864730,1728093047740,-500.0,0.00037534,120]
[339864731,1728093047748,-500.0,0.00037534,120]
[339864732,1728093047757,-797.8,0.00037534,120]
[339864733,1728093047766,-500.0,0.00037534,120]
[339864734,1728093047775,-580.74,0.00037534,120]
[339864735,1728093047784,-500.0,0.00037534,120]
[339864736,1728093047793,-683.93,0.00037534,120]
[339864737,1728093047802,-589.38,0.00037534,120]
[339864738,1728093047811,-500.0,0.00037534,120]
[339864739,1728093047820,-500.0,0.00037534,120]
[339864740,1728093047829,-150.0,0.00037534,2]
[339864741,1728093047838,-500.0,0.00037573,5]
[339864742,1728093047848,-500.0,0.00037573,5]
[339864743,1728093047858,-500.0,0.00037643,30]
[339864744,1728093047867,-1370.88,0.00037643,30]
[339864745,1728093047876,-506.38,0.00037643,30]
[339864746,1728093047886,-500.0,0.00037643,30]
[339864747,1728093047898,-681.73,0.00037643,30]
[339864748,1728093047909,-274.11309141,0.00037643,30]
[339864749,1728093047918,-1553.49,0.00037643,30]
[339864750,1728093047928,-500.0,0.00037643,30]
[339864751,1728093047937,-500.0,0.00037643,30]
[339864752,1728093047946,-500.0,0.00037643,30]
[339864753,1728093047956,-710.53,0.00037643,30]
[339864754,1728093047966,-500.0,0.00037643,30]
[339864755,1728093047977,-915.91,0.00037643,30]
[339864756,1728093047986,-500.0,0.00037643,30]
[339864757,1728093047996,-500.0,0.00037643,30]
[339864758,1728093048005,-500.0,0.00037643,30]
[339864759,1728093048014,-600.48,0.00037643,30]
[339864760,1728093048024,-500.0,0.00037643,30]
[339864761,1728093048033,-500.0,0.00037643,21]
[339864762,1728093048042,-500.0,0.00037643,30]
[339864763,1728093048051,-500.0,0.00037643,30]
[339864764,1728093048060,-500.0,0.00037643,30]
[339864765,1728093048070,-500.0,0.00037643,30]
[339864766,1728093048078,-500.0,0.00037643,30]
[339864767,1728093048088,-366.44886388,0.00037643,30]
[339864768,1728093048097,-500.0,0.00037643,30]
[339864769,1728093048106,-500.0,0.00037643,30]
[339864770,1728093048115,-594.34,0.00037643,30]
[339864771,1728093048125,-500.0,0.00037643,30]
[339864772,1728093048134,-1520.95,0.00037643,30]
[339864773,1728093048143,-681.92,0.00037643,30]
[339864774,1728093048152,-500.0,0.00037643,30]
[339864775,1728093048162,-2261.46,0.00037643,30]
[339864776,1728093048170,-500.0,0.00037643,30]
[339864777,1728093048181,-741.42,0.00037643,30]
[339864778,1728093048190,-500.0,0.00037643,30]
[339864779,1728093048199,-500.0,0.00037643,30]
[339864780,1728093048207,-667.39,0.00037643,30]
[339864781,1728093048216,-500.0,0.00037643,30]
[339864782,1728093048225,-500.0,0.00037643,30]
[339864783,1728093048234,-500.0,0.00037643,30]
[339864784,1728093048243,-500.0,0.00037643,30]
[339864785,1728093048252,-500.0,0.00037643,30]
[339864786,1728093048261,-500.0,0.00037643,30]
[339864787,1728093048271,-1000.0,0.00037757,2]
[339864788,1728093048280,-256.20785454,0.000378,7]
[339864789,1728093048289,-150.0,0.000378,7]
[339864790,1728093048299,-150.0,0.000378,7]
[339864791,1728093048308,-153.1926666,0.000378,7]
[339864792,1728093048317,-150.0,0.000378,7]
[339864793,1728093048327,-150.0,0.000378,7]
[339864794,1728093048336,-150.0,0.000378,7]
[339864795,1728093048345,-150.0,0.000378,7]
[339864796,1728093048354,-150.0,0.000378,7]
[339864797,1728093048363,-150.0,0.000378,7]
[339864798,1728093048372,-150.0,0.000378,7]
[339864799,1728093048380,-150.0,0.000378,7]
[339864800,1728093048389,-500.0,0.00037808,120]
[339864801,1728093048400,-501.51485468,0.00037808,120]
[339864802,1728093048410,-420.25757643,0.00037808,120]
[339864803,1728093048419,-500.0,0.00037808,120]
[339864804,1728093048428,-500.0,0.00037808,120]
[339864805,1728093048438,-500.0,0.00037808,120]
[339864806,1728093048447,-500.0,0.00037808,120]
[339864807,1728093048457,-500.0,0.00037808,120]
[339864808,1728093048466,-500.0,0.00037808,120]
[339864809,1728093048475,-500.0,0.00037808,120]
[339864810,1728093048484,-500.0,0.00037808,120]
[339864811,1728093048492,-500.0,0.00037808,120]
[339864812,1728093048501,-500.0,0.00037808,120]
[339864813,1728093048511,-500.0,0.00037808,120]
[339864814,1728093048520,-500.0,0.00037808,120]
[339864815,1728093048529,-511.85,0.00037808,120]
[339864816,1728093048538,-500.0,0.00037808,120]
[339864817,1728093048547,-500.0,0.00037808,120]
[339864818,1728093048556,-500.0,0.00037808,120]
[339864819,1728093048565,-500.0,0.00037808,120]
[339864820,1728093048574,-500.0,0.00037808,120]
[339864821,1728093048583,-500.0,0.00037808,120]
[339864822,1728093048592,-500.0,0.00037808,120]
[339864823,1728093048601,-517.06,0.00037808,120]
[339864824,1728093048610,-500.0,0.00037808,120]
[339864825,1728093048621,-500.0,0.00037808,120]
[339864826,1728093048630,-500.0,0.00037808,120]
[339864827,1728093048639,-500.0,0.00037808,120]
[339864828,1728093048649,-500.0,0.00037808,120]
[339864829,1728093048658,-624.38,0.00037808,120]
[339864830,1728093048667,-500.0,0.00037808,120]
[339864831,1728093048676,-1835.52,0.00037808,120]
[339864832,1728093048685,-586.25577017,0.00037808,120]
[339864833,1728093048694,-806.9,0.00037808,120]
[339864834,1728093048702,-834.94,0.00037808,120]
[339864835,1728093048711,-500.0,0.00037808,120]
[339864836,1728093048846,-911.18,0.00037808,120]
[339864837,1728093048856,-1539.35,0.00037808,120]
[339864838,1728093048865,-194.28372211,0.00037808,120]
[339864839,1728093048874,-1030.81,0.00037808,120]
[339864840,1728093048883,-500.0,0.00037808,120]
[339864841,1728093048892,-500.0,0.00037808,120]
[339864842,1728093048901,-1478.46,0.00037808,120]
[339864843,1728093048911,-500.0,0.00037808,120]
[339864844,1728093048919,-500.0,0.00037808,120]
[339864845,1728093048928,-500.0,0.00037808,120]
[339864846,1728093048937,-500.0,0.00037808,120]
[339864847,1728093048946,-500.0,0.00037808,120]
[339864848,1728093048955,-500.0,0.00037808,120]
[339864849,1728093048964,-500.0,0.00037808,120]
[339864850,1728093048974,-950.31,0.00037808,120]
[339864851,1728093048983,-773.48,0.00037808,120]
[339864852,1728093048992,-500.0,0.00037808,120]
[339864853,1728093049001,-500.0,0.00037808,120]
[339864854,1728093049011,-951.84,0.00037808,120]
[339864855,1728093049020,-500.0,0.00037808,120]
[339864856,1728093049029,-500.0,0.00037808,120]
[339864857,1728093049038,-168.36,0.00037808,120]
[339864858,1728093049046,-500.0,0.00037808,120]
[339864859,1728093049065,-500.0,0.00037808,120]
[339864860,1728093049074,-500.0,0.00037808,120]
[339864861,1728093049084,-500.0,0.00037808,120]
[339864862,1728093049093,-500.0,0.00037808,120]
[339864863,1728093049103,-500.0,0.00037808,120]
[339864864,1728093049112,-500.0,0.00037808,120]
[339864865,1728093049121,-630.76,0.00037808,120]
[339864866,1728093049130,-604.68,0.00037808,120]
[339864867,1728093049139,-500.0,0.00037808,120]
[339864868,1728093049148,-500.0,0.00037808,120]
[339864869,1728093049157,-500.0,0.00037808,120]
[339864870,1728093049166,-500.0,0.00037808,120]
[339864871,1728093049175,-500.0,0.00037808,120]
[339864872,1728093049184,-500.0,0.00037808,120]
[339864873,1728093049193,-500.0,0.00037808,120]
[339864874,1728093049202,-500.0,0.00037808,120]
[339864875,1728093049211,-500.0,0.00037808,120]
[339864876,1728093049221,-500.0,0.00037808,120]
[339864877,1728093049232,-500.0,0.00037808,120]
[339864878,1728093049241,-500.0,0.00037808,120]
[339864879,1728093049249,-500.0,0.00037808,120]
[339864880,1728093049258,-335.70133952,0.00037808,120]
[339864881,1728093049268,-500.0,0.00037808,120]
[339864882,1728093049276,-500.0,0.00037808,120]
[339864883,1728093049286,-500.0,0.00037808,120]
[339864884,1728093049295,-500.0,0.00037808,120]
[339864885,1728093049306,-500.0,0.00037808,120]
[339864886,1728093049316,-500.0,0.00037808,120]
[339864887,1728093049325,-500.0,0.00037808,120]
[339864888,1728093049334,-500.0,0.00037808,120]
[339864889,1728093049343,-659.02,0.00037808,120]
[339864890,1728093049352,-500.0,0.00037808,120]
[339864891,1728093049361,-500.0,0.00037808,120]
[339864892,1728093049370,-500.0,0.00037808,120]
[339864893,1728093049380,-500.0,0.00037808,120]
[339864894,1728093049390,-500.0,0.00037808,120]
[339864895,1728093049399,-500.0,0.00037808,120]
[339864896,1728093049409,-584.59,0.00037808,120]
[339864897,1728093049418,-572.9,0.00037808,24]
[339864898,1728093049427,-500.0,0.00037808,120]
[339864899,1728093049436,-500.0,0.00037808,120]
[339864900,1728093049445,-678.61,0.00037808,120]
[339864901,1728093049454,-500.0,0.00037808,120]
[339864902,1728093049463,-500.0,0.00037808,120]
[339864903,1728093049472,-500.0,0.00037808,120]
[339864904,1728093049481,-1203.86,0.00037808,120]
[339864905,1728093049490,-740.87,0.00037808,120]
[339864906,1728093049499,-500.0,0.00037808,120]
[339864907,1728093049508,-1106.14,0.00037808,120]
[339864908,1728093049517,-532.4,0.00037808,120]
[339864909,1728093049527,-500.0,0.00037808,120]
[339864910,1728093049536,-500.0,0.00037808,120]
[339864911,1728093049545,-500.0,0.00037808,120]
[339864912,1728093049555,-500.0,0.00037808,120]
[339864913,1728093049565,-648.0,0.00037808,120]
[339864914,1728093049574,-500.0,0.00037808,120]
[339864915,1728093049583,-500.0,0.00037808,120]
[339864916,1728093049592,-500.0,0.00037808,120]
[339864917,1728093049601,-500.0,0.00037808,120]
[339864918,1728093049611,-1028.1,0.00037808,120]
[339864919,1728093049620,-500.0,0.00037808,120]
[339864920,1728093049630,-500.0,0.00037808,120]
[339864921,1728093049639,-577.69887499,0.00037808,120]
[339864922,1728093049648,-500.0,0.00037808,120]
[339864923,1728093049657,-500.0,0.00037808,120]
[339864924,1728093049666,-797.8,0.00037808,120]
[339864925,1728093049676,-500.0,0.00037808,120]
[339864926,1728093049685,-580.74,0.00037808,120]
[339864927,1728093049694,-500.0,0.00037808,120]
[339864928,1728093049703,-683.93,0.00037808,120]
[339864929,1728093049712,-589.38,0.00037808,120]
[339864930,1728093049721,-500.0,0.00037808,120]
[339864931,1728093049730,-500.0,0.00037808,120]
[339864932,1728093049739,-2000.0,0.00037821,2]
[339864933,1728093049749,-256.20785454,0.00037842,7]
[339864934,1728093049759,-150.0,0.0003786,7]
[339864935,1728093049768,-150.0,0.00037864,7]
[339864936,1728093049777,-256.20785454,0.00037885,7]
[339864937,1728093049786,-3167.3515438,0.00037891,2]
[339864938,1728093049795,-12775.6702074,0.00037899,15]
[339864939,1728093049805,-799.0,0.00037905,5]
[339864940,1728093049814,-500.0,0.00037917,30]
[339864941,1728093049824,-1370.88,0.00037917,30]
[339864942,1728093049835,-506.38,0.00037917,30]
[339864943,1728093049846,-500.0,0.00037917,30]
[339864944,1728093049860,-681.73,0.00037917,30]
[339864945,1728093049869,-500.0,0.00037917,30]
[339864946,1728093049880,-1553.49,0.00037917,30]
[339864947,1728093049892,-500.0,0.00037917,30]
[339864948,1728093049902,-500.0,0.00037917,30]
[339864949,1728093049914,-710.53,0.00037917,30]
[339864950,1728093049925,-500.0,0.00037917,30]
[339864951,1728093049938,-915.91,0.00037917,30]
[339864952,1728093049950,-500.0,0.00037917,30]
[339864953,1728093049959,-500.0,0.00037917,30]
[339864954,1728093049970,-500.0,0.00037917,30]
[339864955,1728093049980,-600.48,0.00037917,30]
[339864956,1728093049992,-500.0,0.00037917,30]
[339864957,1728093050002,-328.94628594,0.00037917,21]
[339864958,1728093050012,-500.0,0.00037917,30]
[339864959,1728093050021,-500.0,0.00037917,30]
[339864960,1728093050031,-500.0,0.00037917,30]
[339864961,1728093050039,-500.0,0.00037917,30]
[339864962,1728093050049,-500.0,0.00037917,30]
[339864963,1728093050058,-500.0,0.00037917,30]
[339864964,1728093050067,-500.0,0.00037917,30]
[339864965,1728093050076,-594.34,0.00037917,30]
[339864966,1728093050085,-500.0,0.00037917,30]
[339864967,1728093050093,-1520.95,0.00037917,30]
[339864968,1728093050103,-681.92,0.00037917,30]
[339864969,1728093050113,-500.0,0.00037917,30]
[339864970,1728093050123,-2261.46,0.00037917,30]
[339864971,1728093050132,-153.56787165,0.00037917,30]
[339864972,1728093050142,-741.42,0.00037917,30]
[339864973,1728093050151,-500.0,0.00037917,30]
[339864974,1728093050160,-500.0,0.00037917,30]
[339864975,1728093050170,-667.39,0.00037917,30]
[339864976,1728093050179,-500.0,0.00037917,30]
[339864977,1728093050188,-500.0,0.00037917,30]
[339864978,1728093050197,-500.0,0.00037917,30]
[339864979,1728093050207,-500.0,0.00037917,30]
[339864980,1728093050217,-500.0,0.00037917,30]
[339864981,1728093050228,-150.0,0.0003792,7]
[339864982,1728093050238,-256.20785454,0.00037927,7]
[339864983,1728093050248,-150.0,0.00037927,7]
[339864984,1728093050257,-150.0,0.0003795,7]
[339864985,1728093050267,-256.20785454,0.0003797,7]
[339864986,1728093050277,-150.0,0.0003798,7]
[339864987,1728093050288,-150.0,0.00037983,7]
[339864988,1728093050298,-150.0,0.00037991,7]
[339864989,1728093050308,-500.0,0.00038,120]
[339864990,1728093050317,-60174.12480259,0.00038,120]
[339864991,1728093050327,-3034.93341851,0.00038,120]
[339864992,1728093050336,-256.20785454,0.00038012,7]
[339864993,1728093050352,-460.03146752,0.00038015,11]
[339864994,1728093050365,-150.0,0.0003804,7]
[339864995,1728093050380,-256.20785454,0.00038055,7]
[339864996,1728093050393,-150.0,0.00038055,7]
[339864997,1728093050404,-1022.5133845,0.00038056,2]
[339864998,1728093050416,-14723.6212952,0.00038056,2]
[339864999,1728093050430,-13435.3094137,0.00038056,2]
[339865000,1728093050444,-5594.163361,0.00038056,2]
[339865001,1728093050456,-1842.9550381,0.00038056,2]
[339865002,1728093050470,-500.0,0.00038073,5]
[339865003,1728093050484,-306.173092,0.00038082,120]
[339865004,1728093050496,-500.0,0.00038082,120]
[339865005,1728093050508,-500.0,0.00038082,120]
[339865006,1728093050521,-500.0,0.00038082,120]
[339865007,1728093050535,-500.0,0.00038082,120]
[339865008,1728093050550,-500.0,0.00038082,120]
[339865009,1728093050560,-500.0,0.00038082,120]
[339865010,1728093050574,-500.0,0.00038082,120]
[339865011,1728093050586,-500.0,0.00038082,120]
[339865012,1728093050598,-500.0,0.00038082,120]
[339865013,1728093050610,-500.0,0.00038082,120]
[339865014,1728093050622,-500.0,0.00038082,120]
[339865015,1728093050633,-500.0,0.00038082,120]
[339865016,1728093050645,-511.85,0.00038082,120]
[339865017,1728093050655,-500.0,0.00038082,120]
[339865018,1728093050665,-526.44908698,0.00038082,120]
[339865019,1728093050677,-500.0,0.00038082,120]
[339865020,1728093050689,-500.0,0.00038082,120]
[339865021,1728093050701,-500.0,0.00038082,120]
[339865022,1728093050713,-500.0,0.00038082,120]
[339865023,1728093050726,-500.0,0.00038082,120]
[339865024,1728093050738,-517.06,0.00038082,120]
[339865025,1728093050751,-500.0,0.00038082,120]
[339865026,1728093050763,-500.0,0.00038082,120]
[339865027,1728093050777,-500.0,0.00038082,120]
[339865028,1728093050789,-500.0,0.00038082,120]
[339865029,1728093050800,-500.0,0.00038082,120]
[339865030,1728093050810,-624.38,0.00038082,120]
[339865031,1728093050822,-162.95743522,0.00038082,120]
[339865032,1728093050832,-1835.52,0.00038082,120]
[339865033,1728093050843,-806.9,0.00038082,120]
[339865034,1728093050855,-834.94,0.00038082,120]
[339865035,1728093050868,-500.0,0.00038082,120]
[339865036,1728093050880,-911.18,0.00038082,120]
[339865037,1728093050891,-1539.35,0.00038082,120]
[339865038,1728093050901,-1030.81,0.00038082,120]
[339865039,1728093050914,-500.0,0.00038082,120]
[339865040,1728093050926,-500.0,0.00038082,120]
[339865041,1728093050939,-1478.46,0.00038082,120]
[339865042,1728093050952,-500.0,0.00038082,120]
[339865043,1728093050963,-478.59247361,0.00038082,120]
[339865044,1728093050973,-500.0,0.00038082,120]
[339865045,1728093050984,-500.0,0.00038082,120]
[339865046,1728093050995,-500.0,0.00038082,120]
[339865047,1728093051006,-500.0,0.00038082,120]
[339865048,1728093051017,-500.0,0.00038082,120]
[339865049,1728093051028,-950.31,0.00038082,120]
[339865050,1728093051038,-773.48,0.00038082,120]
[339865051,1728093051050,-500.0,0.00038082,120]
[339865052,1728093051061,-500.0,0.00038082,120]
[339865053,1728093051072,-951.84,0.00038082,120]
[339865054,1728093051083,-500.0,0.00038082,120]
[339865055,1728093051094,-261.84551052,0.00038082,120]
[339865056,1728093051104,-168.36,0.00038082,120]
[339865057,1728093051115,-500.0,0.00038082,120]
[339865058,1728093051126,-500.0,0.00038082,120]
[339865059,1728093051137,-500.0,0.00038082,120]
[339865060,1728093051147,-500.0,0.00038082,120]
[339865061,1728093051158,-500.0,0.00038082,120]
[339865062,1728093051169,-583.40940734,0.00038082,120]
[339865063,1728093051180,-500.0,0.00038082,120]
[339865064,1728093051190,-630.76,0.00038082,120]
[339865065,1728093051201,-604.68,0.00038082,120]
[339865066,1728093051212,-500.0,0.00038082,120]
[339865067,1728093051223,-500.0,0.00038082,120]
[339865068,1728093051234,-500.0,0.00038082,120]
[339865069,1728093051245,-373.68820353,0.00038082,120]
[339865070,1728093051256,-500.0,0.00038082,120]
[339865071,1728093051267,-500.0,0.00038082,120]
[339865072,1728093051278,-500.0,0.00038082,120]
[339865073,1728093051289,-500.0,0.00038082,120]
[339865074,1728093051300,-500.0,0.00038082,120]
[339865075,1728093051311,-500.0,0.00038082,120]
[339865076,1728093051323,-500.0,0.00038082,120]
[339865077,1728093051334,-506.77817991,0.00038082,120]
[339865078,1728093051345,-500.0,0.00038082,120]
[339865079,1728093051356,-500.0,0.00038082,120]
[339865080,1728093051367,-500.0,0.00038082,120]
[339865081,1728093051377,-500.0,0.00038082,120]
[339865082,1728093051388,-500.0,0.00038082,120]
[339865083,1728093051399,-500.0,0.00038082,120]
[339865084,1728093051410,-500.0,0.00038082,120]
[339865085,1728093051422,-500.0,0.00038082,120]
[339865086,1728093051433,-500.0,0.00038082,120]
[339865087,1728093051443,-659.02,0.00038082,120]
[339865088,1728093051454,-287.1058724,0.00038082,120]
[339865089,1728093051466,-500.0,0.00038082,120]
[339865090,1728093051477,-500.0,0.00038082,120]
[339865091,1728093051488,-500.0,0.00038082,120]
[339865092,1728093051499,-500.0,0.00038082,120]
[339865093,1728093051509,-500.0,0.00038082,120]
[339865094,1728093051521,-584.59,0.00038082,120]
[339865095,1728093051531,-572.9,0.00038082,24]
[339865096,1728093051542,-500.0,0.00038082,120]
[339865097,1728093051552,-500.0,0.00038082,120]
[339865098,1728093051563,-678.61,0.00038082,120]
[339865099,1728093051574,-116.4655649,0.00038082,120]
[339865100,1728093051687,-333.5721255,0.000376,7]
[339865101,1728093051705,-189.0988902,0.000369,2]
[339865102,1728093051716,-1006.4278745,0.000376,7]
[339865103,1728093051728,-500.0,0.00037917,30]
[339865104,1728093051739,-383.5344351,0.00038082,120]
[339865105,1728093051750,-500.0,0.00038082,120]
[339865106,1728093051761,-182.62621709,0.00038082,120]
[339865107,1728093051771,-1203.86,0.00038082,120]
[339865108,1728093051783,-740.87,0.00038082,120]
[339865109,1728093051794,-231.55129609,0.00038082,120]
[339865110,1728093051804,-369.33931276,0.00038082,120]
[339865111,1728093051883,-431.0,0.000282,5]
[339865112,1728093051894,-201.60700021,0.00036999,5]
[339865113,1728093051909,-797.39299979,0.00036999,5]
[339865114,1728093051920,-736.80068724,0.00038082,120]
[339865115,1728093051930,-532.4,0.00038082,120]
[339865116,1728093051939,-500.0,0.00038082,120]
[339865117,1728093051949,-107.22356098,0.00038082,120]
[339865118,1728093161108,512.0,0.00012896,2]
[339865121,1728093297158,1001.8,0.00015,2]
[339865122,1728093297653,1031.443114,0.00016445,2]
[339865124,1728093564932,169.28,0.00010959,2]
[339865125,1728093893687,995.02,0.00015,2]
[339865126,1728093894084,995.02,0.00015805,2]
[339865127,1728093894588,995.02,0.0001661,2]
[339865128,1728093894790,1071.98,0.00017415,2]
[339865129,1728094030362,250.0,0.00013,2]
[339865130,1728094031538,300.0,0.00015,2]
[339865131,1728094032628,350.0,0.00017,2]
[339865132,1728094065565,160.0,0.00017,2]
[339865164,1728094238104,-400.0,0.00019,2]
[339865165,1728094238113,-160.0,0.0002,2]
[339865166,1728094238122,-450.0,0.00021,2]
[339865167,1728094238132,-169.61481646,0.00025,30]
[339865168,1728094238141,-160.0,0.0003,2]
[339865169,1728094238150,-270.0,0.0003,4]
[339865170,1728094238160,-797.28,0.0003,2]
[339865171,1728094238169,-189.24,0.0003,2]
[339865172,1728094238178,-613.0,0.000301,5]
[339865173,1728094238188,-150.0,0.000309,120]
[339865174,1728094238196,-600.0,0.000309,120]
[339865175,1728094238206,-600.0,0.000309,120]
[339865176,1728094238215,-150.0,0.00030913,30]
[339865177,1728094238224,-774.0,0.000314,4]
[339865178,1728094238234,-2434.0,0.000314,4]
[339865179,1728094238243,-179.99,0.000316,12]
[339865180,1728094238253,-214.0,0.0003206,2]
[339865181,1728094238262,-283.12,0.00032418,2]
[339865182,1728094238271,-214.0,0.0003297,2]
[339865183,1728094238280,-214.0,0.0003387,2]
[339865184,1728094238289,-214.0,0.0003387,2]
[339865185,1728094238299,-2419.57,0.00034128,2]
[339865186,1728094238308,-250.0,0.00034159,2]
[339865187,1728094238317,-250.0,0.00034185,120]
[339865188,1728094238326,-162.58,0.00034256,2]
[339865189,1728094238335,-200.0,0.00034408,2]
[339865190,1728094238344,-2000.0,0.00034425,120]
[339865191,1728094238353,-600.0,0.00034463,2]
[339865192,1728094238362,-548.29,0.00034514,2]
[339865193,1728094238371,-984.789,0.00034533,2]
[339865194,1728094238381,-150.0,0.00034533,2]
[339865195,1728094238390,-519.87,0.00034631,120]
[339865196,1728094238400,-1864.1,0.00034663,2]
[339865197,1728094238409,-250.0,0.00034672,2]
[339865198,1728094238419,-283.12,0.00034682,2]
[339865199,1728094238428,-214.0,0.0003477,2]
[339865200,1728094238438,-214.0,0.0003477,2]
[339865201,1728094238447,-400.0,0.00035069,2]
[339865202,1728094238456,-523.801,0.00035222,41]
[339865203,1728094238465,-165.983,0.00035222,41]
[339865204,1728094238474,-212.59,0.00035332,120]
[339865205,1728094238484,-214.0,0.0003568,2]
[339865206,1728094238493,-214.0,0.0003568,2]
[339865207,1728094238503,-2025.0,0.00035693,102]
[339865208,1728094238514,-161.23,0.00035693,120]
[339865209,1728094238529,-167.57,0.00035709,2]
[339865210,1728094238539,-150.08,0.00035793,5]
[339865211,1728094238548,-2588.789,0.000358,30]
[339865212,1728094238557,-195.12,0.00035817,2]
[339865213,1728094238566,-482.5514,0.00035899,2]
[339865214,1728094238575,-1000.0,0.0003597,2]
[339865215,1728094238584,-1247.65275843,0.0003597,2]
[339865216,1728094238593,-1000.0,0.0003597,2]
[339865217,1728094238603,-826.02722762,0.0003597,2]
[339865218,1728094238612,-195.12,0.00035996,2]
[339865219,1728094238621,-500.0,0.00035999,30]
[339865220,1728094238630,-500.0,0.00035999,30]
[339865221,1728094238639,-500.0,0.00035999,30]
[339865223,1728094238648,-500.0,0.00035999,30]
[339865225,1728094238657,-500.0,0.00035999,30]
[339865227,1728094238667,-250.0,0.00035999,2]
[339865229,1728094238676,-500.0,0.00035999,30]
[339865231,1728094238690,-500.0,0.00035999,30]
[339865233,1728094238700,-500.0,0.00035999,30]
[339865235,1728094238708,-500.0,0.00035999,30]
[339865237,1728094238717,-500.0,0.00035999,30]
[339865239,1728094238728,-500.0,0.00035999,30]
[339865241,1728094238738,-500.0,0.00035999,30]
[339865243,1728094238747,-731.5,0.00035999,30]
[339865244,1728094238756,-303.56329791,0.00035999,30]
[339865246,1728094238768,-503.50771088,0.00035999,30]
[339865248,1728094238776,-500.0,0.00035999,30]
[339865250,1728094238786,-500.0,0.00035999,30]
[339865252,1728094238795,-500.0,0.00035999,30]
[339865254,1728094238805,-500.0,0.00035999,30]
[339865256,1728094238815,-500.0,0.00035999,30]
[339865258,1728094238825,-500.0,0.00035999,30]
[339865260,1728094238834,-500.0,0.00035999,30]
[339865262,1728094238844,-500.0,0.00035999,30]
[339865264,1728094238853,-500.0,0.00035999,30]
[339865266,1728094238862,-500.0,0.00035999,30]
[339865268,1728094238871,-500.0,0.00035999,30]
[339865270,1728094238881,-500.0,0.00035999,30]
[339865272,1728094238890,-2000.0,0.00036,26]
[339865274,1728094238899,-2008.350924,0.0003601,26]
[339865276,1728094238909,-150.26,0.00036073,5]
[339865278,1728094238918,-1511.0,0.000362,2]
[339865280,1728094238928,-500.0,0.00036273,30]
[339865281,1728094238939,-500.0,0.00036273,30]